Cogmind - Beta 15 @@@ ROGUE MODE // 2025.06.06 @ 01:12:47 Player: Florist Result: Destroyed by G-73 Enforcer with Phase Gun Performance ------------- Evolutions (9) 4500 Regions Visited (17) 3400 Robots Destroyed (234) 1170 Value Destroyed (8138) 8138 Prototype IDs (10) 200 Alien Tech Used (0) 0 Bonus (11219) 11219 TOTAL SCORE: 28627 Bonus ------- Triggered High Security 500 High Alert Combat Kills 3229 Met Warlord at Base 500 MAIN.C Attacked Warlord 500 Warlord Defense Kills 100 Met Warlord at Research 2000 Invited to Help at Command 2000 Scanned by Researcher 500 Met Warlord at Command 2000 Friendly Fire -110 Cogmind --------- Core Integrity 0/1600 Matter 15/300 Energy 100/100 System Corruption 12% Temperature Cool (4) Movement Core (50) Location -1/Command Parts ------- > --- POWER (2) -------- (None) > --- PROPULSION (9) --- (None) > --- UTILITY (12) ----- Launcher Guidance Computer Launcher Guidance Computer > --- WEAPON (2) ------- (None) > --- INVENTORY (5) ---- Improved Antigrav System Compact Matter Pod (0) Phasing Sabre Peak State ------------ > --- POWER ------------ Fusion Compressor Reinforced Antimatter Reactor > --- PROPULSION ------- Improved VTOL Module Impulse Thruster Cooled Field Propulsion Drive Q-thruster Q-thruster Cooled Impulse Thruster Cooled Impulse Thruster Cooled Impulse Thruster Cooled Impulse Thruster > --- UTILITY ---------- Advanced Heat Sink Advanced Heat Sink Structural Scanner Machine Analyzer Long-range Sensor Array Advanced Signal Interpreter Launcher Guidance Computer Launcher Guidance Computer Centrium Light Armor Plating Advanced Hacking Suite Advanced Hacking Suite Advanced System Shield > --- WEAPON ----------- Ragnarok Missile Launcher Ragnarok Missile Launcher > --- INVENTORY -------- Compact Matter Pod Vortex Catalyst Activator Ragnarok Missile Launcher Phasing Sabre [Rating: 167] Favorites ----------- Power Light Ion Engine Engine Light Ion Engine Power Core Fusion Compressor Reactor Reinforced Antimatter Reactor Propulsion Improved VTOL Module Treads Light Treads Hover Unit Improved Antigrav System Flight Unit Improved VTOL Module Utility Machine Analyzer Device Advanced Heat Sink Storage High-capacity Storage Unit Processor Machine Analyzer Hackware Advanced Hacking Suite Protection Reflective Plating Weapon Light Cannon Ballistic Gun Autogun Ballistic Cannon Light Cannon Launcher Ragnarok Missile Launcher Special Weapon Plasma Cutter Impact Weapon Powered Hammer Slashing Weapon Power Sword Piercing Weapon Spear Build | -11 -10 -9 -8 -7 -6 -5 -5 -5 -4 -4 -4 -4 -3 -3 -2 -1 -1 ------- Run | Yrd Mat Mat Mat Fac Fac Fac Upp War Pro Fac Was Fac Res Arm Res Acc Com Slots Evolved 18 | . . 2 2 2 2 2 . . . 2 . . 2 . 2 2 . Power 1 | . . . . . . . . . . . . . . . 1 . . Propulsion 7 | . . 2 . 1 1 1 . . . 1 . . . . 1 . . Utility 10 | . . . 2 1 1 1 . . . 1 . . 2 . . 2 . Weapon . | . . . . . . . . . . . . . . . . . . Parts Attached 128 | 6 11 14 12 3 9 2 . 2 . 8 1 2 5 4 28 14 7 Power 14 | 1 . 3 1 . 2 . . 1 . 2 . . . 1 3 . . Engine 7 | 1 . 3 1 . 2 . . . . . . . . . . . . Core 2 | . . . . . . . . . . 1 . . . . 1 . . Reactor 5 | . . . . . . . . 1 . 1 . . . 1 2 . . Propulsion 36 | 2 2 4 8 1 1 1 . . . 1 1 . 1 . 9 3 2 Treads 8 | 2 2 4 . . . . . . . . . . . . . . . Leg . | . . . . . . . . . . . . . . . . . . Wheel . | . . . . . . . . . . . . . . . . . . Hover 1 | . . . . . . . . . . . . . . . . . 1 Flight 27 | . . . 8 1 1 1 . . . 1 1 . 1 . 9 3 1 Utility 49 | 1 5 2 2 1 4 1 . . . 5 . 2 4 2 9 10 1 Device 24 | . 4 . . . 1 . . . . 2 . 2 2 2 4 6 1 Storage 2 | 1 1 . . . . . . . . . . . . . . . . Processor 7 | . . . 2 . 1 . . . . 2 . . . . . 2 . Hackware 12 | . . . . . 2 1 . . . 1 . . 2 . 4 2 . Protection 4 | . . 2 . 1 . . . . . . . . . . 1 . . Artifact . | . . . . . . . . . . . . . . . . . . Weapon 29 | 2 4 5 1 1 2 . . 1 . . . . . 1 7 1 4 Energy Gun . | . . . . . . . . . . . . . . . . . . Energy Cannon . | . . . . . . . . . . . . . . . . . . Ballistic Gun 5 | 2 . 3 . . . . . . . . . . . . . . . Ballistic Cannon 5 | . 3 1 . . . . . . . . . . . 1 . . . Launcher 12 | . 1 1 . . . . . . . . . . . . 6 1 3 Special Weapon 1 | . . . . . 1 . . . . . . . . . . . . Impact Weapon 2 | . . . 1 . . . . 1 . . . . . . . . . Slashing Weapon 3 | . . . . . 1 . . . . . . . . . 1 . 1 Piercing Weapon 1 | . . . . 1 . . . . . . . . . . . . . Special Melee Weapon . | . . . . . . . . . . . . . . . . . . Unidentified Prototypes 10 | . . . 2 . . . . . . . . . 2 . 3 1 2 Corrupted Parts 3 | . . 1 . . . . . . . . . . . . 2 . . System Corruption 18 | . . 2 . . . . . . . . . . . . 16 . . Parts Lost 49 | . . 2 . . . . . 1 . 2 . 1 . 6 5 3 29 Power 5 | . . 2 . . . . . . . . . . . 1 . . 2 Propulsion 16 | . . . . . . . . . . 1 . . . . 2 2 11 Utility 21 | . . . . . . . . . . 1 . 1 . 4 3 1 11 Weapon 7 | . . . . . . . . 1 . . . . . 1 . . 5 Highest Loss Streak 19 | . . 1 . . . . . 1 . 2 . 1 . 3 3 2 19 To Critical Strikes . | . . . . . . . . . . . . . . . . . . Average Backups 7 | 2 9 18 6 4 4 3 3 3 4 2 4 4 3 3 3 4 3 Power . | . 1 . . . . . . . . . 1 1 1 1 . . . Propulsion 2 | 1 4 5 1 . . 1 1 1 1 . . . . . . . . Utility 2 | . 1 5 3 3 3 2 2 2 2 1 2 2 1 1 . . 1 Weapon 2 | . 2 7 . . . . . . 1 1 1 1 1 1 2 3 2 Tool/Special . | . . . . . . . . . . . . . . . . . . Unused Backups 16 | . 6 2 2 . . . . 1 . . . . . 1 2 . 2 Power 1 | . . . . . . . . . . . . . . 1 . . . Propulsion 4 | . 3 . . . . . . . . . . . . . . . 1 Utility 6 | . 1 2 1 . . . . 1 . . . . . . . . 1 Weapon 5 | . 2 . 1 . . . . . . . . . . . 2 . . Tool/Special . | . . . . . . . . . . . . . . . . . . Average Slot Usage (%) 93 | . 88 99 89 91 97 98 100 100 100 97 88 86 85 88 90 98 74 Engine 5 | . 13 10 9 7 6 5 5 4 . . . . . . . . . Core 1 | . . . . . . . . . . 2 5 5 4 1 3 4 2 Reactor 1 | . . . . . . . . . 5 1 . . . 2 3 4 2 Treads 13 | . 27 43 1 . . . . . . . . . . . . . . Flight 22 | . . . 33 38 39 41 41 41 41 40 35 36 33 31 34 35 23 Device 11 | . 3 1 16 15 19 17 17 17 17 20 15 16 21 21 9 15 9 Storage 4 | . 14 11 2 . . . . . . . . . . . . . . Processor 7 | . . . 7 15 15 11 11 11 11 10 10 10 9 9 8 14 15 Hackware 6 | . . . . . 3 9 11 11 11 10 10 6 6 12 18 12 10 Protection 2 | . . 9 7 6 . . . . . . . . . . 1 4 2 Ballistic Gun 4 | . 12 9 4 . . . . . . . . . . . . . . Ballistic Cannon 5 | . 14 12 . . . . . . . . . . . 1 . . . Impact Weapon 1 | . . . 6 . . . . 1 5 5 5 5 4 4 1 . . Slashing Weapon 2 | . . . . . 4 5 5 5 5 5 5 5 4 1 2 4 3 Peak Build Rating 167 | 6 10 17 28 35 51 56 56 62 62 78 84 86 104 110 148 160 167 Average Rating 59 | 5 6 15 24 34 47 55 56 58 62 69 73 82 89 101 127 149 118 On Entrance 61 | . 6 10 17 28 35 49 56 56 62 62 70 84 84 104 87 145 160 Naked Turns . | . . . . . . . . . . . . . . . . . . Heaviest Build 63 | 11 50 58 59 14 16 16 16 21 21 30 16 17 18 38 57 57 63 Greatest Support 83 | 40 40 83 20 24 30 35 35 35 35 40 46 46 48 48 60 66 63 Greatest Overweight (x) 5 | 1 2 . 3 . . . . . . . . . . 5 1 1 4 Average Overweight (x) . | . . . . . . . . . . . . . . . . . . Largest Inventory Capacity 20 | 8 20 20 20 5 5 5 5 5 5 5 5 5 5 5 5 5 5 Average Capacity 10 | 7 18 20 8 5 5 5 5 5 5 5 5 5 5 5 5 5 5 Most Carried 20 | 4 20 20 20 5 5 4 3 5 5 5 5 5 5 5 5 5 5 Average Carried 8 | 2 9 18 6 4 4 3 3 4 5 3 5 5 4 4 4 4 4 Final Capacity 20 | 8 20 20 5 5 5 5 5 5 5 5 5 5 5 5 5 5 5 Final Carried 20 | 4 20 20 5 5 5 3 3 5 5 5 5 5 5 5 5 5 3 Class Distribution -------------------- 38% | Mutant 26% | Scavenger-Scout 10% | Hacker-Scout 5% | Hacker-Ninja 3% | Sprinter Dominant Class ---------------- Mutant | -10/Materials Mutant | -9/Materials Sprinter | -8/Materials Sprinter | -7/Factory Scavenger-Scout | -6/Factory Hacker-Scout | -5/Factory Hacker-Scout | -5/Upper Caves Hacker-Scout | -5/Warlord Scavenger-Scout | -4/Proximity Caves Scavenger-Scout | -4/Factory Hacker-Scout | -4/Waste Scavenger-Scout | -4/Factory Scavenger-Scout | -3/Research Hacker-Ninja | -3/Armory Hacker-Scout | -2/Research Scavenger-Scout | -1/Access Hacker-Mutant | -1/Command Resources | -11 -10 -9 -8 -7 -6 -5 -5 -5 -4 -4 -4 -4 -3 -3 -2 -1 -1 ----------- Run | Yrd Mat Mat Mat Fac Fac Fac Upp War Pro Fac Was Fac Res Arm Res Acc Com Matter Collected 8689 | 225 399 1282 6 74 255 . . 55 . 483 . 21 295 377 2788 1207 1222 Remotely . | . . . . . . . . . . . . . . . . . . Salvage Created 8411 | 51 459 1406 75 74 326 . . 60 . 490 . 21 389 363 1896 1372 1429 Parts 367 | 6 31 98 3 6 15 . . . . 9 . 5 14 11 48 67 54 Haulers Intercepted 19 | . 2 4 1 . 1 . . . . 1 . . 1 . 5 4 . Recyclers Shooed 2 | . . 1 . . . . . . . . . . . . . . 1 Parts Field Recycled . | . . . . . . . . . . . . . . . . . . Retrieved Matter . | . . . . . . . . . . . . . . . . . . Parts Self-Destructed . | . . . . . . . . . . . . . . . . . . Prevented . | . . . . . . . . . . . . . . . . . . Kills | -11 -10 -9 -8 -7 -6 -5 -5 -5 -4 -4 -4 -4 -3 -3 -2 -1 -1 ------- Run | Yrd Mat Mat Mat Fac Fac Fac Upp War Pro Fac Was Fac Res Arm Res Acc Com Combat Hostiles Destroyed 112 | . 8 34 . . . . . 1 . . . . . 3 25 18 23 Melee 2 | . . . . . . . . . . . . . . . . 1 1 Guns 13 | . 3 10 . . . . . . . . . . . . . . . Cannons 22 | . 5 14 . . . . . . . . . . . 3 . . . AOE 72 | . . 10 . . . . . . . . . . . . 23 17 22 Classes Destroyed 19 | 1 6 5 . . . . . . . . . . . 1 5 . 1 Worker 22 | . 3 2 . . . . . . . . . . 1 . 3 7 6 Builder 21 | . 3 5 . . 1 . . . . . . 1 . . 6 5 . Tunneler 5 | 2 1 . . . . . . . . 1 . . . . . 1 . Hauler 19 | . 2 4 1 . 1 . . . . 1 . . 1 . 5 4 . Recycler 15 | . . 2 . . 1 . . . . 2 . . 2 . 2 3 3 Mechanic 5 | . . 2 . . . . . . . 1 . . . . 1 . 1 Operator 8 | . . 2 1 1 1 . . . . 2 . . . . . 1 . Watcher 24 | . 2 5 1 2 2 . . . . 2 . . . 2 3 3 2 Swarmer 38 | . 3 7 . . . . . . . . . . . 3 8 11 6 Grunt 45 | . 5 19 . . . . . 1 . . . . . . 6 5 9 Brawler 2 | . . 1 . . . . . . . . . . . . 1 . . Duelist 2 | . . . . . . . . . . . . . . . . . 2 Protector 3 | . . . . . . . . . . . . . . 3 . . . Sentry 7 | . . 7 . . . . . . . . . . . . . . . Hunter 8 | . . . . . . . . . . . . . . . 4 . 4 Programmer 5 | . . . . . . . . . . . . . . . 2 2 1 Behemoth 1 | . . . . . . . . . . . . . . . 1 . . Combat Programmer 1 | . . . . . . . . . . . . . . . . . 1 Striker 1 | . . . . . . . . . . . . . . . 1 . . Executioner 2 | . . . . . . . . . . . . . . . 2 . . Best Kill Streak 12 | 1 5 12 1 1 1 . . 1 . 3 . 1 2 3 9 11 9 Combat Bots Only 8 | . 3 8 . . . . . 1 . . . . . 3 6 6 8 Max Kills in Single Turn 6 | 1 1 4 1 1 1 . . 1 . 1 . 1 1 1 2 5 6 Gunslinging . | . . . . . . . . . . . . . . . . . . Exploded 5 | . . 3 . . . . . . . . . . . . 2 5 5 Melee 1 | . . . . . . . . . . . . . . . . 1 1 Uniques/NPCs Destroyed . | . . . . . . . . . . . . . . . . . . Combat | -11 -10 -9 -8 -7 -6 -5 -5 -5 -4 -4 -4 -4 -3 -3 -2 -1 -1 -------- Run | Yrd Mat Mat Mat Fac Fac Fac Upp War Pro Fac Was Fac Res Arm Res Acc Com Hostile Shots Fired 605 | . 46 126 9 9 . . . 9 . 20 . 14 7 33 75 66 191 Missed 236 | . 16 34 3 7 . . . 6 . 13 . 9 3 13 31 36 65 Hits 369 | . 30 92 6 2 . . . 3 . 7 . 5 4 20 44 30 126 Melee 1 | . . . . . . . . . . . . . . . . . 1 Projectile 368 | . 30 92 6 2 . . . 3 . 7 . 5 4 20 44 30 125 AOE 15 | . . . . . . . . . . . . . . . 1 . 14 Critical Strikes 19 | . 2 3 1 . . . . . . . . . . 1 2 . 10 Damage Taken 8310 | . 421 1226 82 12 69 . . 133 . 313 . 90 59 645 1158 758 3344 Core 2336 | . 52 105 11 . 40 . . 38 . 143 . 13 . 100 234 60 1540 Absorbed by Shields 519 | . . . . . . . . . . . . 5 . 43 . . 471 Ignored by Resistances 48 | . . 38 10 . . . . . . . . . . . . . . Regen/Repaired (Parts) 210 | . . . . . . . . . . 102 . . . 60 48 . . Core Remaining (%) 90 | 100 79 73 98 100 95 . . . 96 . . 86 . 92 83 . . Volleys Fired 275 | 5 59 102 . . 1 . . 1 . . . . . 18 49 15 25 Largest 2 | 2 2 2 . . 1 . . 1 . . . . . 1 2 1 2 Hottest 140 | 40 60 66 . . 20 . . 20 . . . . . 58 140 70 140 Shots Fired 449 | 10 117 204 . . 1 . . 1 . . . . . 18 54 15 29 Gun 131 | 10 50 71 . . . . . . . . . . . . . . . Cannon 207 | . 66 123 . . . . . . . . . . . 18 . . . Launcher 109 | . 1 10 . . . . . . . . . . . . 54 15 29 Special 2 | . . . . . 1 . . 1 . . . . . . . . . Kinetic 338 | 10 116 194 . . . . . . . . . . . 18 . . . Thermal 2 | . . . . . 1 . . 1 . . . . . . . . . Explosive 89 | . 1 10 . . . . . . . . . . . . 36 15 27 Electromagnetic 18 | . . . . . . . . . . . . . . . 18 . . Entropic 2 | . . . . . . . . . . . . . . . . . 2 Robot Hit Streak 21 | 3 15 8 . . . . . 2 . . . . . 2 4 11 21 Robot Miss Streak 4 | 3 4 4 . . . . . . . . . . . 2 3 . 1 Penetration Max . | . . . . . . . . . . . . . . . . . . Secondary Targets 2 | . 1 1 . . . . . . . . . . . . . . . Max Gunslinging Chain 1 | . 1 1 . . . . . . . . . . . . . . . Shots Hit Robots 370 | 5 58 118 6 6 16 . . 4 . 15 . 1 7 12 30 45 47 Core Hits 282 | 4 26 80 1 3 6 . . . . 3 . 1 5 4 56 39 54 Critical Kills 2 | . . 1 . . . . . . . . . . . 1 . . . Critical Parts Destroyed 6 | . . . 1 . . . . 1 . 1 . . . 1 2 . . Critical Strikes 20 | . 2 5 1 . . . . 1 . 1 . . 1 3 2 2 2 Destroy 1 | . . 1 . . . . . . . . . . . . . . . Blast 7 | . 2 4 . . . . . . . . . . . 1 . . . Smash 7 | . . . 1 . . . . 1 . 1 . . . 2 2 . . Sever 5 | . . . . . . . . . . . . . 1 . . 2 2 Melee Attacks 300 | . . . 17 15 41 1 . 3 . 44 . 8 23 20 19 68 41 Impact 89 | . . . 17 1 . . . 2 . 26 . 1 5 20 17 . . Slashing 190 | . . . . . 34 1 . 1 . 18 . 7 18 . 2 68 41 Piercing 21 | . . . . 14 7 . . . . . . . . . . . . Sneak Attacks 59 | . . . 1 1 3 . . . . 8 . 1 5 5 10 18 7 Combat Hostiles . | . . . . . . . . . . . . . . . . . . Follow-up Attacks 2 | . . . . . . . . . . 2 . . . . . . . Damage Inflicted 33205 | 53 794 3187 226 282 1002 . . 156 . 1079 . 84 537 859 8733 6926 9287 Guns 1051 | 53 371 627 . . . . . . . . . . . . . . . Cannons 2036 | . 400 1416 . . . . . . . . . . . 220 . . . Explosions 20483 | . 23 1144 . . . . . . . . . . . . 7632 4041 7643 Melee 9625 | . . . 226 282 1002 . . 146 . 1079 . 84 537 639 1101 2885 1644 Ramming . | . . . . . . . . . . . . . . . . . . Kinetic 3087 | 53 771 2043 . . . . . . . . . . . 220 . . . Thermal 205 | . . . . . . . . 10 . . . . . . 195 . . Explosive 16397 | . 23 1144 . . . . . . . . . . . . 6338 4041 4851 Electromagnetic 1099 | . . . . . . . . . . . . . . . 1099 . . Impact 2784 | . . . 226 . . . . 106 . 828 . . . 639 985 . . Slashing 6467 | . . . . . 910 . . 40 . 251 . 84 537 . 116 2885 1644 Piercing 374 | . . . . 282 92 . . . . . . . . . . . . Entropic 2792 | . . . . . . . . . . . . . . . . . 2792 Highest Corruption 18 | . . 2 . . 2 . . . . . . . 1 12 18 . 12 Average Corruption 4 | . . 2 . . 2 . . . . . . . 1 3 13 . 4 Corruption Purged . | . . . . . . . . . . . . . . . . . . Corruption Blocked . | . . . . . . . . . . . . . . . . . . Effects 86 | . . 25 . . 5 . . . . . . . . 5 46 . 5 Message Errors 22 | . . 9 . . 1 . . . . . . . . 1 10 . 1 Matter Fused 15 | . . . . . . . . . . . . . . . 13 . 2 Heat Flow Errors 10 | . . 2 . . 1 . . . . . . . . 1 5 . 1 Energy Discharges 17 | . . 6 . . 3 . . . . . . . . 2 6 . . Parts Rejected 1 | . . 1 . . . . . . . . . . . . . . . Data Loss (minor) 7 | . . 4 . . . . . . . . . . . 1 2 . . Data Loss (major) 4 | . . 1 . . . . . . . . . . . . 3 . . Misfires 3 | . . 2 . . . . . . . . . . . . 1 . . Alerts 1 | . . . . . . . . . . . . . . . 1 . . Misdirections 3 | . . . . . . . . . . . . . . . 3 . . Weapon Failures 3 | . . . . . . . . . . . . . . . 2 . 1 Overload Shots . | . . . . . . . . . . . . . . . . . . Overflow Damage 3554 | . . 24 70 56 155 . . 56 . 422 . . . 141 951 969 710 Projectiles 11 | . . 11 . . . . . . . . . . . . . . . Explosions 855 | . . 13 . . . . . . . . . . . . 392 212 238 Melee 2688 | . . . 70 56 155 . . 56 . 422 . . . 141 559 757 472 Knockbacks 33 | . 7 11 1 . . . . 1 . 3 . . . 8 2 . . Impact 13 | . . . 1 . . . . 1 . 3 . . . 6 2 . . Kinetic 17 | . 7 8 . . . . . . . . . . . 2 . . . Secondary 3 | . . 3 . . . . . . . . . . . . . . . Self-Inflicted Damage 237 | . 86 136 . . . . . . . . . . . . 15 . . Shots 6 | . 2 3 . . . . . . . . . . . . 1 . . Rammed . | . . . . . . . . . . . . . . . . . . Targets Rammed . | . . . . . . . . . . . . . . . . . . Kicked . | . . . . . . . . . . . . . . . . . . Crushed . | . . . . . . . . . . . . . . . . . . Highest Temperature 361 | . 38 236 25 9 176 196 47 260 291 291 45 60 45 97 300 361 294 Average Temperature 64 | . 18 30 11 2 32 79 25 101 137 83 21 22 13 20 75 82 76 Received Heat Transfer 971 | . 135 486 63 . . . . 30 . 21 . 9 . 39 54 18 116 Effects 4 | . . . . . . . . 2 . . . . . . 1 1 . Shutdowns 1 | . . . . . . . . . . . . . . . . 1 . Energy Bleed 3 | . . . . . . . . 2 . . . . . . 1 . . Siege Activations . | . . . . . . . . . . . . . . . . . . Martial Activations . | . . . . . . . . . . . . . . . . . . Shielding Activations . | . . . . . . . . . . . . . . . . . . Robots Disrupted . | . . . . . . . . . . . . . . . . . . Combat Hostiles . | . . . . . . . . . . . . . . . . . . Robots Corrupted 21 | . . . 1 . . . . 1 . 6 . . . 4 9 . . Combat Hostiles 3 | . . . . . . . . 1 . . . . . . 2 . . Parts Fried 48 | . . . 3 . . . . . . 9 . . . 12 24 . . Impact Corruptions 43 | . . . 4 . . . . 2 . 13 . . . 6 18 . . Robots Melted . | . . . . . . . . . . . . . . . . . . Combat Hostiles . | . . . . . . . . . . . . . . . . . . Parts Melted . | . . . . . . . . . . . . . . . . . . Heat Transferred 187 | . . . . . . . . 37 . . . . . . 150 . . Parts Sabotaged . | . . . . . . . . . . . . . . . . . . Parts Stolen . | . . . . . . . . . . . . . . . . . . Parts Stripped . | . . . . . . . . . . . . . . . . . . Power Chain Reactions 4 | . . . . . . . . . . . . . . . 4 . . Alert | -11 -10 -9 -8 -7 -6 -5 -5 -5 -4 -4 -4 -4 -3 -3 -2 -1 -1 ------- Run | Yrd Mat Mat Mat Fac Fac Fac Upp War Pro Fac Was Fac Res Arm Res Acc Com Maximum Alert Level 5 | . . 2 2 2 1 . . . . . . . . . 4 5 5 Low Security (%) 53 | 100 100 16 . 10 97 100 . . . 100 100 100 100 100 9 . . Level 1 14 | . . 44 55 37 2 . . . . . . . . . 13 . . Level 2 12 | . . 39 44 52 . . . . . . . . . . 12 . . Level 3 5 | . . . . . . . . . . . . . . . 22 46 . Level 4 7 | . . . . . . . . . . . . . . . 41 33 10 Level 5 3 | . . . . . . . . . . . . . . . . 20 37 High Security 2 | . . . . . . . . . . . . . . . . . 52 Max Security . | . . . . . . . . . . . . . . . . . . Peak Influence 2402 | 5 149 694 429 426 201 17 . . . 157 22 130 115 97 1370 1924 2402 Initial 1225 | . 3 28 286 184 192 . . . . . 22 . 63 53 . 765 1225 Average 417 | 1 44 369 351 374 78 3 . . . 38 11 87 58 33 877 1251 1944 Influence Increases 8306 | 10 388 1265 230 310 160 27 . 125 . 426 . 182 189 231 1754 1467 1542 Destroy 0b10 Robot/C 2280 | . 160 680 . . . . . 20 . . . . . 60 540 360 460 Destroy 0b10 Robot/NC 590 | 10 55 110 15 10 30 . . . . 45 . 5 20 10 100 120 60 Destroy Leader 534 | . 48 188 4 4 6 . . . . 4 . . 2 14 136 54 74 Successful Hack 326 | . 27 12 11 30 75 10 . . . 58 . . 7 5 . 54 37 Disable Machine 480 | . 60 135 15 15 15 15 . . . . . . 15 60 75 15 60 Anti-Garrison Action 400 | . . . . 200 . . . . . . . . . . 150 . 50 Destroy Structure 1626 | . 38 110 5 6 19 2 . . . 34 . 12 10 22 588 234 546 Partial Spotted 480 | . . . . 30 . . . . . 90 . . 45 30 60 210 15 Lose Combat Pursuer 1590 | . . 30 180 15 15 . . 105 . 195 . 165 90 30 105 420 240 Influence Decreases 5939 | 5 324 655 503 322 554 10 8 48 86 362 64 60 209 333 478 827 1091 Entered New Map 2315 | . 2 41 393 222 202 . 8 9 86 . 42 . 59 49 . 511 691 Time Decay 2866 | 5 322 594 110 100 242 10 . 39 . 182 22 50 115 251 428 286 110 Lost Part 453 | . . 20 . . . . . . . 20 . 10 . 33 50 30 290 Lost Ally 45 | . . . . . . . . . . 10 . . 35 . . . . Purge Threat 260 | . . . . . 110 . . . . 150 . . . . . . . Squads Dispatched 61 | . 1 7 1 2 6 . . . . 7 . 1 5 5 3 11 12 Investigation 21 | . 1 2 . 1 3 . . . . 4 . 1 3 . 1 3 2 Extermination 12 | . . . . 1 2 . . . . 2 . . 1 2 . 3 1 Reinforcement 17 | . . 3 1 . 1 . . . . . . . 1 3 2 5 1 Assault 10 | . . 2 . . . . . . . . . . . . . . 8 Garrison 1 | . . . . . . . . . . 1 . . . . . . . Intercept . | . . . . . . . . . . . . . . . . . . Searches Triggered . | . . . . . . . . . . . . . . . . . . Construction Impeded 3 | . . 1 . . . . . . . . . . . . 1 1 . Haulers Reinforced 3 | . . . . . . . . . . . . . 1 . 1 1 . Active Scanning Responses . | . . . . . . . . . . . . . . . . . . Cargo Convoy Interrupts . | . . . . . . . . . . . . . . . . . . Stealth | -11 -10 -9 -8 -7 -6 -5 -5 -5 -4 -4 -4 -4 -3 -3 -2 -1 -1 --------- Run | Yrd Mat Mat Mat Fac Fac Fac Upp War Pro Fac Was Fac Res Arm Res Acc Com Distress Signals 31 | . . 1 . . . . . 1 . 4 . 1 2 . 15 3 4 Communications Jammed . | . . . . . . . . . . . . . . . . . . Distress Signals . | . . . . . . . . . . . . . . . . . . Times Spotted 353 | . 11 49 17 5 6 . . 19 . 22 6 11 10 17 50 43 87 Peak Tracking Total 71 | . 3 10 11 3 3 . . 10 . 10 6 8 7 10 8 13 71 Tactical Retreats 40 | . . 2 3 1 1 . . 3 . 6 . 3 3 1 4 9 4 Traps | -11 -10 -9 -8 -7 -6 -5 -5 -5 -4 -4 -4 -4 -3 -3 -2 -1 -1 ------- Run | Yrd Mat Mat Mat Fac Fac Fac Upp War Pro Fac Was Fac Res Arm Res Acc Com Traps Triggered 20 | . 4 1 . . 1 . . . . 5 . 2 . 5 . 1 1 Indirectly . | . . . . . . . . . . . . . . . . . . Trap Hack Attempts . | . . . . . . . . . . . . . . . . . . Triggered . | . . . . . . . . . . . . . . . . . . Disarmed . | . . . . . . . . . . . . . . . . . . Reprogrammed 1 | . . . . . . . . . . . . . . . . . 1 Reused . | . . . . . . . . . . . . . . . . . . Traps Extracted . | . . . . . . . . . . . . . . . . . . Installed . | . . . . . . . . . . . . . . . . . . Triggered . | . . . . . . . . . . . . . . . . . . Machines | -11 -10 -9 -8 -7 -6 -5 -5 -5 -4 -4 -4 -4 -3 -3 -2 -1 -1 ---------- Run | Yrd Mat Mat Mat Fac Fac Fac Upp War Pro Fac Was Fac Res Arm Res Acc Com Machines Disabled 35 | . 4 9 1 1 1 1 . . . . . . 1 4 6 1 6 Max in Single Turn 2 | . 2 1 1 1 1 1 . . . . . . 1 1 1 1 2 Garrison Access 8 | . . . 1 1 . . . . . 1 . . . . 2 3 . Phase Generator 1 | . . . . . . . . . . . . . . . . . 1 Machines Repaired . | . . . . . . . . . . . . . . . . . . Machines Dismantled 1 | . . . . . . 1 . . . . . . . . . . . Machines Sabotaged . | . . . . . . . . . . . . . . . . . . Overloaded Fab Kills . | . . . . . . . . . . . . . . . . . . Hacking | -11 -10 -9 -8 -7 -6 -5 -5 -5 -4 -4 -4 -4 -3 -3 -2 -1 -1 --------- Run | Yrd Mat Mat Mat Fac Fac Fac Upp War Pro Fac Was Fac Res Arm Res Acc Com Machines Accessed 86 | . 4 6 6 5 11 2 . 6 . 13 . 4 5 5 2 13 4 Terminals 48 | . 4 4 5 4 7 . . . . 6 . 3 2 3 . 6 4 Fabricators 9 | . . . . . 2 . . . . 4 . . 1 . . 2 . Repair Stations 4 | . . . . . 1 1 . . . 1 . . . 1 . . . Recycling Units 4 | . . 1 . . . 1 . . . . . . . 1 . 1 . Scanalyzers 3 | . . 1 . . 1 . . . . . . . 1 . . . . Garrison Access 12 | . . . 1 1 . . . . . 2 . 1 1 . 2 4 . Total Hacks 246 | . 11 16 20 16 31 4 . 13 . 47 . 13 16 8 7 26 18 Successful 117 | . 8 9 9 7 16 1 . 13 . 21 . 4 2 7 1 10 9 Failed 129 | . 3 7 11 9 15 3 . . . 26 . 9 14 1 6 16 9 Catastrophic 19 | . . 1 1 . 1 1 . . . 4 . 2 5 . . 3 1 Database Lockouts . | . . . . . . . . . . . . . . . . . . Manual 116 | . 4 13 14 13 9 . . . . 25 . 5 12 1 . 9 11 Terminals 143 | . 11 13 17 13 19 . . . . 15 . 11 9 3 . 14 18 Fabricators 29 | . . . . . 7 . . . . 14 . . 2 . . 6 . Repair Stations 17 | . . . . . 2 2 . . . 9 . . . 4 . . . Recycling Units 5 | . . 1 . . . 2 . . . . . . . 1 . 1 . Scanalyzers 6 | . . 2 . . 3 . . . . . . . 1 . . . . Garrison Access 33 | . . . 3 3 . . . . . 9 . 2 4 . 7 5 . Terminal Hacks 50 | . 5 2 2 2 5 . . 13 . 3 . 3 1 3 . 5 6 Record 13 | . . . . . . . . 11 . . . . . 1 . . 1 Open Door 7 | . . . . . . . . 2 . . . . . 1 . 4 . Open DSF 1 | . . . . . 1 . . . . . . . . . . . . Level Access Points 2 | . 1 . . . . . . . . 1 . . . . . . . Branch Access Points 3 | . 1 . . . . . . . . . . 1 1 . . . . Machine Index 1 | . . . . . . . . . . . . . . . . . 1 Terminal Index 5 | . . 1 . 1 1 . . . . 1 . . . . . . 1 Alert Level 2 | . . . . . . . . . . . . 1 . . . . 1 Unreport Threat 2 | . . . . . 1 . . . . 1 . . . . . . . Locate Traps 7 | . 1 . 1 1 2 . . . . . . 1 . . . . 1 Reprogram Traps 1 | . . . . . . . . . . . . . . . . . 1 Transport Status 1 | . 1 . . . . . . . . . . . . . . . . Hauler Manifests 1 | . . . 1 . . . . . . . . . . . . . . Registered Components 2 | . 1 1 . . . . . . . . . . . . . . . Zone Layout 2 | . . . . . . . . . . . . . . 1 . 1 . Fabricator Hacks 4 | . . . . . 4 . . . . . . . . . . . . Load Schematic 2 | . . . . . 2 . . . . . . . . . . . . Build 2 | . . . . . 2 . . . . . . . . . . . . Repair Station Hacks 13 | . . . . . 1 1 . . . 8 . . . 3 . . . Scan Component 8 | . . . . . 1 1 . . . 4 . . . 2 . . . Repair 5 | . . . . . . . . . . 4 . . . 1 . . . Recycling Unit Hacks 3 | . . 1 . . . . . . . . . . . 1 . 1 . Retrieve Matter 1 | . . . . . . . . . . . . . . 1 . . . Retrieve Components 2 | . . 1 . . . . . . . . . . . . . 1 . Scanalyzer 4 | . . 2 . . 2 . . . . . . . . . . . . Insert Component 2 | . . 1 . . 1 . . . . . . . . . . . . Analyze 2 | . . 1 . . 1 . . . . . . . . . . . . Garrison Access Hacks 6 | . . . 1 . . . . . . 1 . . . . 1 3 . Seal Access 6 | . . . 1 . . . . . . 1 . . . . 1 3 . Unauthorized Hacks 36 | . 3 4 6 5 4 . . . . 8 . 1 1 . . 1 3 Terminals 31 | . 3 4 6 4 4 . . . . 5 . 1 1 . . . 3 Assimilate 4 | . . . . 1 . . . . . 3 . . . . . . . Botnet 24 | . 3 3 5 3 3 . . . . 2 . 1 1 . . . 3 Operators 3 | . . 1 1 . 1 . . . . . . . . . . . . Fabricators 4 | . . . . . . . . . . 3 . . . . . 1 . Fabnet 4 | . . . . . . . . . . 3 . . . . . 1 . Repair Stations . | . . . . . . . . . . . . . . . . . . Recycling Units . | . . . . . . . . . . . . . . . . . . Scanalyzers . | . . . . . . . . . . . . . . . . . . Garrison Access 1 | . . . . 1 . . . . . . . . . . . . . Jam 1 | . . . . 1 . . . . . . . . . . . . . Data Cores Recovered 3 | . . . . . . . . . . 2 . . . . . 1 . Used 1 | . . . . . . . . . . 1 . . . . . . . Hacking Detections 57 | . 3 4 5 5 10 2 . . . 9 . 3 5 . 1 6 4 Full Trace Events 19 | . 1 2 . . 3 . . . . 4 . 1 3 . 1 3 1 Feedback Events 3 | . . . . . . . . . . . . 1 1 . 1 . . Corruption 2 | . . . . . . . . . . . . . 1 . 1 . . Hackware Fried 1 | . . . . . . . . . . . . 1 . . . . . Feedback Blocked 1 | . . . . . . . . . . . . . . . . 1 . Robot Schematics Acquired . | . . . . . . . . . . . . . . . . . . Robots Built . | . . . . . . . . . . . . . . . . . . Authchips . | . . . . . . . . . . . . . . . . . . Time . | . . . . . . . . . . . . . . . . . . Total Robot Build Rating . | . . . . . . . . . . . . . . . . . . Part Schematics Acquired 2 | . . 1 . . 1 . . . . . . . . . . . . Parts Built 2 | . . . . . 2 . . . . . . . . . . . . Authchips . | . . . . . . . . . . . . . . . . . . Time 116 | . . . . . 116 . . . . . . . . . . . . Total Part Build Rating 6 | . . . . . 6 . . . . . . . . . . . . Parts Repaired 5 | . . . . . . . . . . 4 . . . 1 . . . Time 358 | . . . . . . . . . . 222 . . . 136 . . . Parts Recycled . | . . . . . . . . . . . . . . . . . . Recycled Matter . | . . . . . . . . . . . . . . . . . . Retrieved Matter . | . . . . . . . . . . . . . . . . . . Retrieved Components 13 | . . 10 . . . . . . . . . . . . . 3 . Parts Scanalyzed 2 | . . 1 . . 1 . . . . . . . . . . . . Part Schematics Acquired 2 | . . 1 . . 1 . . . . . . . . . . . . Parts Damaged . | . . . . . . . . . . . . . . . . . . Bothacking | -11 -10 -9 -8 -7 -6 -5 -5 -5 -4 -4 -4 -4 -3 -3 -2 -1 -1 ------------ Run | Yrd Mat Mat Mat Fac Fac Fac Upp War Pro Fac Was Fac Res Arm Res Acc Com Used RIF Installer . | . . . . . . . . . . . . . . . . . . Robots Hacked 3 | . . . . . . . . . . . . . 2 . 1 . . Non-combat . | . . . . . . . . . . . . . . . . . . Combat 3 | . . . . . . . . . . . . . 2 . 1 . . Robot Hacks Applied . | . . . . . . . . . . . . . . . . . . Relay Couplers Released 1 | . . . . . . . . . . . . . . . 1 . . Machine Destruction 1 | . . . . . . . . . . . . . . . 1 . . Fabnet Peak Effective % 9 | . . . . . . . . . . . . . 9 9 3 . . Autooverrided 3 | . . . . . . . . . . . . . 2 . 1 . . Robots Rewired 3 | . . . . . . . . . . . . . . 3 . . . Allies Hacked . | . . . . . . . . . . . . . . . . . . Hacks Repelled . | . . . . . . . . . . . . . . . . . . Allies | -11 -10 -9 -8 -7 -6 -5 -5 -5 -4 -4 -4 -4 -3 -3 -2 -1 -1 -------- Run | Yrd Mat Mat Mat Fac Fac Fac Upp War Pro Fac Was Fac Res Arm Res Acc Com Total Allies 8 | . . . . 1 . . . . . 1 . . 2 3 1 . . Largest Group 3 | . . . . 1 . . . . . 1 . . 2 3 1 . . Highest-Rated Group 192 | . . . . 10 . . . . . 45 . . 103 192 30 . . Highest-Rated Ally 64 | . . . . 10 . . . . . 45 . . 56 64 30 . . Total Orders 1 | . . . . . . . . . . . . . . 1 . . . STAY 1 | . . . . . . . . . . . . . . 1 . . . Ally Attacks 8 | . . . . . . . . . . . . . 2 . 6 . . Total Damage 185 | . . . . . . . . . . . . . 44 . 141 . . Kills 2 | . . . . . . . . . . . . . . . 2 . . Allies Corrupted 3 | . . . . . . . . . . . . . . 3 . . . Allies Melted 1 | . . . . . . . . . . . . . . . 1 . . Intel | -11 -10 -9 -8 -7 -6 -5 -5 -5 -4 -4 -4 -4 -3 -3 -2 -1 -1 ------- Run | Yrd Mat Mat Mat Fac Fac Fac Upp War Pro Fac Was Fac Res Arm Res Acc Com Active Infowar (turns) 6715 | . 370 218 220 215 841 37 8 534 361 684 62 119 249 668 1052 620 457 Sensors 5459 | . 176 218 . . 827 37 8 534 361 684 62 119 249 639 637 569 339 Terrain 8 | . 4 . . . . . . . . . . . . . . 4 . Structural 4466 | . 2 . 220 215 826 37 8 534 361 681 . 31 249 571 . 560 171 Seismic 3577 | . 188 . 217 215 841 37 8 534 361 392 62 119 249 354 . . . Machine Analysis 6087 | . . . 180 215 841 37 8 534 361 684 62 119 249 668 1052 620 457 Cloaking 516 | . . . . . . . . . . . . . 130 328 58 . . Robot Analysis Total . | . . . . . . . . . . . . . . . . . . Derelict Logs Recovered 2 | . . . . . . . . . 2 . . . . . . . . Drone Launches . | . . . . . . . . . . . . . . . . . . Drone Recoveries . | . . . . . . . . . . . . . . . . . . Exploration | -11 -10 -9 -8 -7 -6 -5 -5 -5 -4 -4 -4 -4 -3 -3 -2 -1 -1 ------------- Run | Yrd Mat Mat Mat Fac Fac Fac Upp War Pro Fac Was Fac Res Arm Res Acc Com Turns Passed 9948 | 138 1590 2056 227 215 841 37 8 534 361 684 62 119 249 668 1052 620 487 Spaces Moved 14783 | 75 609 1013 397 643 1345 112 26 1152 396 1287 162 379 863 768 2323 2313 920 Core 109 | 8 . . . . . . . . . . . . . 12 . . 89 Treads 1689 | 67 609 1013 . . . . . . . . . . . . . . . Legs . | . . . . . . . . . . . . . . . . . . Wheels . | . . . . . . . . . . . . . . . . . . Hover 18 | . . . . . . . . . . . . . . . . . 18 Flight 12967 | . . . 397 643 1345 112 26 1152 396 1287 162 379 863 756 2323 2313 813 Fastest Speed 5 | 50 160 160 26 24 21 18 18 18 18 15 17 19 18 18 12 5 13 Average Speed 37 | 149 222 160 34 24 21 18 18 18 18 15 17 19 18 23 19 12 23 Slowest Speed 320 | 160 320 160 266 24 24 18 18 18 18 17 19 19 19 300 96 83 250 Overloaded Moves 12 | . . . . . . . . . . . . . . . . 12 . Propulsion Burnouts . | . . . . . . . . . . . . . . . . . . Robots Hopped 27 | . . . 1 4 3 . . 6 . 4 . 1 . 3 4 . 1 Potential Cave-ins 9 | . . . . . . . . . . . . . . 8 1 . . Cave-ins Triggered 1 | . . . . . . . . . . . . . . 1 . . . Exploration Rate (%) 39 | 6 83 67 38 15 30 3 2 94 55 39 83 11 27 34 38 64 29 Regions Visited 17 Branch Regions 5 Pre-discovered Areas . | . . . . . . . . . . . . . . . . . . Known Exits Taken 13 | . 1 . 1 1 1 1 1 1 1 . . 1 1 1 1 1 . Unknown Exits Taken 2 | 1 . 1 . . . . . . . . . . . . . . . Scrap Searched . | . . . . . . . . . . . . . . . . . . Spaces Dug 175 | . 7 9 5 6 19 1 . . . 17 . 6 5 11 61 25 3 Terrain Destroyed 844 | . 30 118 5 6 19 1 . . . 17 . 6 5 19 277 106 235 Melee 100 | . . . 5 6 19 1 . . . 17 . 6 5 10 3 25 3 Projectile 10 | . . 1 . . . . . . . . . . . 9 . . . AOE 734 | . 30 117 . . . . . . . . . . . . 274 81 232 Terrain Rammed . | . . . . . . . . . . . . . . . . . . Walls Destroyed . | . . . . . . . . . . . . . . . . . . Machines Disabled . | . . . . . . . . . . . . . . . . . . Actions | -11 -10 -9 -8 -7 -6 -5 -5 -5 -4 -4 -4 -4 -3 -3 -2 -1 -1 --------- Run | Yrd Mat Mat Mat Fac Fac Fac Upp War Pro Fac Was Fac Res Arm Res Acc Com Total 18211 | 89 735 1256 463 676 1831 118 28 1464 684 1708 194 412 918 1194 2825 2524 1092 Wait 2495 | . 16 100 9 17 421 . 3 309 289 354 31 21 29 348 364 106 78 Move 14717 | 74 608 1012 394 635 1338 111 25 1142 395 1279 161 376 862 760 2315 2312 918 Hop 22 | . . . 1 3 3 . . 3 . 4 . 1 . 3 3 . 1 Pick Up 68 | 4 22 8 3 2 6 . . 2 . 3 . . 2 2 9 1 4 Fast Attach 92 | 6 8 4 7 1 2 . . 2 . 9 1 2 3 6 24 12 5 Attach 45 | . 1 3 7 2 6 2 . . . 2 . . 2 2 11 1 6 Detach 10 | . 2 1 . . 1 . . . . . . . . 1 3 . 2 Swap 48 | . 7 16 3 . 6 . . . . 4 . . . 3 6 1 2 Drop 102 | . 12 10 22 1 6 . . 2 . 8 1 1 2 3 22 8 4 Fire 275 | 5 59 102 . . 1 . . 1 . . . . . 18 49 15 25 Melee 286 | . . . 17 15 41 1 . 3 . 36 . 7 18 20 19 68 41 Ram . | . . . . . . . . . . . . . . . . . . Kick . | . . . . . . . . . . . . . . . . . . Crush . | . . . . . . . . . . . . . . . . . . Escape Stasis 32 | . . . . . . . . . . 9 . 4 . 13 . . 6 Rewire 15 | . . . . . . . . . . . . . . 15 . . . Trap . | . . . . . . . . . . . . . . . . . . Miscellaneous 4 | . . . . . . 4 . . . . . . . . . . . Route ------- -11/Scrapyard -10/Materials (discovered 6 exits: *Mat x3 / *Min x2 / [*Sub]) -9/Materials (discovered 5 exits: *Mat / [*Min x2] / [*Sto x2]) -8/Materials -7/Factory (discovered 2 exits: *Fac / *Low) -6/Factory (discovered 3 exits: *Fac / *Low x2) -5/Factory -5/Upper Caves -5/Warlord -4/Proximity Caves -4/Factory (discovered 7 exits: Res x4 / *Upp / *Ext x2) -4/Waste -4/Factory (discovered 5 exits: *Res / Upp x2 / Ext x2) -3/Research (discovered 4 exits: Res / *Arm / Qua x2) -3/Armory -2/Research -1/Access (discovered 2 exits: [*Sur] / *Com) -1/Command History --------- Turn | Location | Event 6 | -11/Scrapyard | Discovered new exit (range 16) 139 | -11/Scrapyard | Entered Materials 311 | -10/Materials | Build established: Mutant 430 | -10/Materials | Discovered new exit (range 12) 442 | -10/Materials | Identified exit to Materials 1233 | -10/Materials | Discovered new exit (range 10) 1305 | -10/Materials | Identified exit to Mines 1729 | -10/Materials | Entered another Materials area 1729 | -9/Materials | Evolved 2 slots: Propulsion x2 1887 | -9/Materials | Discovered new exit (range 14) 2133 | -9/Materials | Destroyed 8 combat bots 2201 | -9/Materials | Discovered new exit (range 7) 2661 | -9/Materials | Discovered new exit (range 8) 3005 | -9/Materials | Destroyed 8 combat bots 3091 | -9/Materials | Discovered new exit (range 16) 3329 | -9/Materials | First assault squad dispatched 3474 | -9/Materials | Discovered new exit (range 5) 3785 | -9/Materials | Entered another Materials area 3785 | -8/Materials | Evolved 2 slots: Utility x2 3875 | -8/Materials | Discovered new exit (range 14) 4011 | -8/Materials | Identified exit to Factory 4012 | -8/Materials | Entered Factory 4012 | -7/Factory | Evolved 2 slots: Propulsion x1, Utility x1 4036 | -7/Factory | Discovered new exit (range 8) 4040 | -7/Factory | Identified exit to Lower Caves 4139 | -7/Factory | Discovered new exit (range 3) 4142 | -7/Factory | Identified exit to Factory 4166 | -7/Factory | Build established: Sprinter 4227 | -7/Factory | Entered another Factory area 4227 | -6/Factory | Evolved 2 slots: Propulsion x1, Utility x1 4239 | -6/Factory | Identified exit to DSF 4253 | -6/Factory | Discovered new exit (range 11) 4258 | -6/Factory | Identified exit to Lower Caves 4322 | -6/Factory | Discovered exit to Lower Caves (range 15) 4659 | -6/Factory | Fabricated Imp. VTOL Module? 4718 | -6/Factory | Fabricated Imp. VTOL Module? 4835 | -6/Factory | Build established: Scavenger-Scout 5043 | -6/Factory | Discovered new exit (range 15) 5046 | -6/Factory | Identified exit to Factory 5068 | -6/Factory | Entered another Factory area 5068 | -5/Factory | Evolved 2 slots: Propulsion x1, Utility x1 5088 | -5/Factory | Discovered new exit (range 4) 5088 | -5/Factory | Identified exit to Upper Caves 5105 | -5/Factory | Entered Upper Caves 5108 | -5/Upper Caves | A Derelict revealed a hidden shortcut to "reach the base" 5109 | -5/Upper Caves | Identified exit to Warlord 5113 | -5/Upper Caves | Entered Warlord 5158 | -5/Warlord | Met Warlord 5178 | -5/Warlord | Visited the Vortex Lab 5178 | -5/Warlord | Found Prototype Launcher 5183 | -5/Warlord | Warlord's base attacked by MAIN.C 5360 | -5/Warlord | Build established: Hacker-Scout 5460 | -5/Warlord | P-80 Master assimilated allied OX-LKU(Y) 5497 | -5/Warlord | Opened side exit 5499 | -5/Warlord | Lost 4 allies 5533 | -5/Warlord | Warlord forces counterattacked 5644 | -5/Warlord | Discovered new exit (range 15) 5647 | -5/Warlord | Identified exit to Proximity Caves 5647 | -5/Warlord | Entered Proximity Caves 5781 | -4/Proximity Caves | Build established: Scavenger-Scout 5792 | -4/Proximity Caves | Received a Behemoth hack from an annoying Tinkerer 5933 | -4/Proximity Caves | Learned 4 Research zone layouts 5935 | -4/Proximity Caves | Learned location of 1 exit from Research 5994 | -4/Proximity Caves | Discovered new exit (range 5) 5995 | -4/Proximity Caves | Identified exit to Factory 6008 | -4/Proximity Caves | Entered Factory 6008 | -4/Factory | Evolved 2 slots: Propulsion x1, Utility x1 6073 | -4/Factory | Repaired Lgt. Antimatter Reactor 6140 | -4/Factory | Repaired Adv. Heat Sink 6191 | -4/Factory | Repaired Nuclear Pulse Thruster 6253 | -4/Factory | Repaired Imp. VTOL Module 6308 | -4/Factory | Discovered new exit (range 15) 6311 | -4/Factory | Identified exit to Extension 6356 | -4/Factory | Discovered exit to Extension (range 16) 6420 | -4/Factory | Garrison activated, responded to threat 6547 | -4/Factory | Identified exit to Research 6671 | -4/Factory | Discovered new exit (range 14) 6692 | -4/Factory | Manually triggered Chute Trap 6692 | -4/Factory | Sucked down chute 6692 | -4/Factory | Entered Waste 6697 | -4/Waste | Spotted C-40 Crusher 6699 | -4/Waste | Spotted C-40 Crusher 6699 | -4/Waste | Spotted C-40 Crusher 6705 | -4/Waste | Spotted C-40 Crusher 6739 | -4/Waste | Spotted C-40 Crusher 6739 | -4/Waste | Spotted C-40 Crusher 6749 | -4/Waste | Discovered new exit (range 12) 6754 | -4/Waste | Identified exit to Factory 6754 | -4/Waste | Entered Factory 6786 | -4/Factory | Hacking Suite fried by hacking feedback 6870 | -4/Factory | Discovered exit to Research (range 11) 6870 | -4/Factory | Identified exit to Upper Caves 6873 | -4/Factory | Entered Research 6873 | -3/Research | Evolved 2 slots: Utility x2 6874 | -3/Research | Identified exit to Armory 6875 | -3/Research | Identified exit to Research 6929 | -3/Research | Found Prototype Device 6929 | -3/Research | Identified Exp. Shield Generator 6983 | -3/Research | Spotted B-86 Titan 7094 | -3/Research | Identified exit to Quarantine 7122 | -3/Research | Entered Armory 7208 | -3/Armory | Found Unknown Device 7208 | -3/Armory | Identified Adv. Force Booster 7553 | -3/Armory | Repaired Broken Cld. Impulse Thruster? 7600 | -3/Armory | Crushed by falling debris 7601 | -3/Armory | System corruption reached 10% 7631 | -3/Armory | Lost 3 parts (3u) 7692 | -3/Armory | Discovered exit to Research (range 3) 7701 | -3/Armory | Spotted Armor Guard 7701 | -3/Armory | Spotted Armor Guard 7775 | -3/Armory | Spotted Armor Guard 7775 | -3/Armory | Spotted Armor Guard 7790 | -3/Armory | Entered Research 7790 | -2/Research | Warlord forces began assault on 0b10 7790 | -2/Research | Evolved 2 slots: Power x1, Propulsion x1 7794 | -2/Research | Met up with Warlord 7898 | -2/Research | Lost 3 allies 7900 | -2/Research | Research machine network offline 8013 | -2/Research | Discovered new exit (range 4) 8014 | -2/Research | Identified exit to Access 8068 | -2/Research | Spotted B-90 Cyclops 8096 | -2/Research | Found Prototype Launcher 8096 | -2/Research | Identified Ragnarok Missile Launcher 8099 | -2/Research | Found Faulty Ragnarok Missile Launcher 8100 | -2/Research | Found Ragnarok Missile Launcher 8102 | -2/Research | Found Ragnarok Missile Launcher 8162 | -2/Research | System corruption reached 10% 8168 | -2/Research | Spotted Striker 8168 | -2/Research | Spotted Executioner 8170 | -2/Research | Lost 3 parts (1n2u) 8176 | -2/Research | Destroyed Executioner 8178 | -2/Research | Destroyed Striker 8213 | -2/Research | Spotted B-90 Cyclops 8240 | -2/Research | Destroyed B-90 Cyclops 8361 | -2/Research | Lost 3 allies 8399 | -2/Research | Spotted Striker 8409 | -2/Research | Spotted Executioner 8414 | -2/Research | Destroyed Executioner 8415 | -2/Research | Spotted Striker 8452 | -2/Research | Found Ragnarok Missile Launcher 8454 | -2/Research | Found Ragnarok Missile Launcher 8460 | -2/Research | Lost 4 allies 8531 | -2/Research | Spotted Striker 8536 | -2/Research | Borebot progress halted 8555 | -2/Research | Borebot progress halted 8791 | -2/Research | Warlord invited to help at Command 8791 | -2/Research | Given Cave Seal Controls access code 8830 | -2/Research | Spotted Striker 8842 | -2/Research | Entered Access 8842 | -1/Access | Evolved 2 slots: Utility x2 9119 | -1/Access | Discovered new exit (range 6) 9327 | -1/Access | Spotted B-99 Colossus 9402 | -1/Access | Spotted B-99 Colossus 9456 | -1/Access | Discovered new exit (range 8) 9457 | -1/Access | Identified exit to Command 9462 | -1/Access | Entered Command 9513 | -1/Command | Phase Generator disabled 9527 | -1/Command | Disengaged cave seal 9527 | -1/Command | Derelicts emerged from the dark tunnel 9527 | -1/Command | Welcomed Warlord to Command 9547 | -1/Command | Spotted B-99 Colossus 9613 | -1/Command | Lost 4 allies 9694 | -1/Command | High security lockdown imminent 9774 | -1/Command | High security lockdown engaged 9786 | -1/Command | Warlord commented on Warlord statues 9794 | -1/Command | Spotted Combat Programmer 9794 | -1/Command | Spotted M Guard 9796 | -1/Command | Spotted Combat Programmer 9799 | -1/Command | Spotted M Guard 9850 | -1/Command | Lost 3 allies 9866 | -1/Command | Combat Programmer assimilated allied 3D-R6S(l) 9885 | -1/Command | Lost 19 parts (2p8n5u4w) 9903 | -1/Command | Identified Vortex Catalyst Activator 9906 | -1/Command | Destroyed Combat Programmer 9909 | -1/Command | Warlord destroyed during the assault 9916 | -1/Command | Core integrity fell below 50% 9919 | -1/Command | Spotted Investigator 9927 | -1/Command | Destroyed 8 combat bots 9936 | -1/Command | Scanned by Researcher 9939 | -1/Command | Core integrity fell below 20% 9945 | -1/Command | Spotted Executioner 9945 | -1/Command | Spotted Striker 9949 | -1/Command | System corruption reached 10% 9949 | -1/Command | Destroyed by G-73 Enforcer with Phase Gun Last Messages --------------- 09945_ G-73 Enforcer stasis bubble strength at 16. 09945_ Held in stasis. 09945_ Investigator is analyzing... 09946_ Stasis bubble strength at 182. 09946_ L-61 Swordsman stasis bubble bursts. 09946_ M Guard stasis bubble strength at 20. 09946_ G-73 Enforcer stasis bubble bursts. 09946_ B-74 Champion stasis bubble strength at 50. 09947_ The unstable cave ceiling collapses. 09947_ Stasis bubble strength at 176. 09947_ B-74 Champion stasis bubble strength at 20. 09948_ Stasis bubble strength at 170. 09948_ M Guard stasis bubble bursts. 09948_ Adv. Signal Interpreter destroyed. 09948_ System corrupted by crushing effect (+2). 09948_ Held in stasis. 09948_ Investigator is analyzing... 09948_ B-74 Champion stasis bubble bursts. 09949_ The unstable cave ceiling collapses. 09949_ Stasis bubble strength at 164. Map ----- +----------------------------------------------------+ | ????????????????????????? ??????????????????????? | | ????????????????????????? ??????????????????????? | | ????????????????????????? ??????????????????????? | | ????????????????????????? #??????????????????????? | | ????????????????????????? #??????????????????????? | | ????????????????????????# #??????????????????????? | | ??????????????????????### #??????????????????????? | | ?????????????????????? ??????????????????????? | | ??????????????????????# #??????????????????????? | | ??????????????????????# #??????????????????????? | | ??????????????????????#p #??????????????????????? | | ??????????????????????# #??????????????????????? | | ??????????????????????#p #??????????????????????? | | ??????????????????????# p #??????????????????????? | | ??????????????????????# #??????????????????????? | | ?????????????????????## ####???????????????????? | | ?????????????????????# #???????????????????? | | ????????????????????## #???????????????????? | | ????????????????????# #?????????????????#?? | | ????????????????????# # #?????????????????# | | ????????????????????# ##?????????????????# | | ????????????????????# #?????????????????# | | ????????????????????## #?????????????????# | | ????????????????????# % #?????????????????# | | ????????????????????# #?????????????????# | | ????????????????????# @ #?????????????????# | | ????????????????????# gb # #?????????????????### | | ????????????????????# l ####???????????????## | | ????????????????????# cgg #?????????? ??### | | ???????????????#"""## K gg# ########### # | | ???????????????# T# #Eb | | ???????????????# ## gYm W # | | ???????????????# hl | | ???????????????# gg | | ???????????????# l % | | ???????????????# iW % | | ???????????????# mb = | | ???????????????# # #% W# # #### | | ???????????????####### %%# ## | | ????????????????????# # # ## ### | | ????????????????????### ### # # ##### #??# | | ??????????????????????# #? #####?????####???# | | ??????????????????????#" #? ##????????????????# | | ??????????????????????#%" #?#??????????????????### | | ??????????????????????#" #??????????????????????? | | ??????????????????????#%" #??????????????????????? | | ??????????????????????#" #??????????????????????? | | ??????????????????????# #??????????????????????? | | ??????????????????????# #???????????????######## | | ??????????????????????# ????????????????# | +----------------------------------------------------+ Best States ------------- Heat Dissipation 90 Energy Generation 55 Energy Capacity 350 Matter Stores 300 Matter Capacity 300 Sight Range 16 Robot Scan Range 18 Terrain Scan Density 10 Cloak Strength 4 Armor Coverage 225 Resistance: TH 30 Phase Shifting 10 Evasion (%) 67 Launcher Accuracy 40 Recoil Reduction 4 Force Boost 40 Offensive Hacking 42 Defensive Hacking 26 Item Schematics ----------------- VTOL Module | -9/Materials | Scanalyzed Imp. VTOL Module | -6/Factory | Scanalyzed Robot Schematics ------------------ None Fabricated ------------ Imp. VTOL Module | x1 | -6/Factory Imp. VTOL Module | x1 | -6/Factory Repaired ---------- Lgt. Antimatter Reactor | 60% | -4/Factory Adv. Heat Sink | 24% | -4/Factory Nuclear Pulse Thruster | 36% | -4/Factory Imp. VTOL Module | 66% | -4/Factory Cld. Impulse Thruster | 33% | -3/Armory | Broken Alien Tech Used ----------------- None Achievements -------------- Dramatic Entrance Challenges ------------ None Game ------ Seed SupersonicDefenseReplica Manual? 0 Play Time 02:33:51 Cumulative 115.8 hours Start 2025.06.05 @ 22:31:55 End 2025.06.06 @ 01:12:47 Sessions 1 Manual Loads 0 Difficulty Rogue Special Mode None Game No. 122 Rogue 122 Adventurer 0 Explorer 0 Win Type - Total 6 Types 4/0/0/2/0/0/0/0/0/0 Lore% 56 Gallery% 54 Achievement% 51 Wizard Run 0 Options --------- Layout 1 ASCII 0 Keyboard 0 Movement Numpad Keybinds 0 Fullscreen 1 Font 32/SmallcapsGlow Map View 77x35 Zoom Use 0% Tactical HUD 1 Map Filters NONE Filters NONE Steam 1 RUN: 096a0a69-12d0-4002-869f-513ef4d66070